bitfinex/quotes_SOLUSD_20240621
["timestamp","ask_amount","ask_price","bid_price","bid_amount"]
[1718993416133,6.1824,129.4,129.36,6.1742]
[1718993416930,6.1829,129.39,129.36,6.1742]
[1718993417133,20.0,129.44,129.32,21.4712]
[1718993417311,6.1848,129.35,129.32,21.4712]
[1718993417718,6.1845,129.36,129.32,21.4712]
[1718993418327,45.0,129.43,129.32,21.4712]
[1718993418525,20.0,129.42,129.32,21.4712]
[1718993418720,6.1855,129.34,129.32,21.4712]
[1718993421039,8.0490344,129.37,129.29,22.5652]
[1718993421243,6.187,129.31,129.29,22.5652]
[1718993421447,6.1871,129.3,129.29,22.5652]
[1718993422046,6.1868,129.31,129.29,22.5652]
[1718993422545,6.1864,129.32,129.29,22.5652]
[1718993424532,6.1861,129.33,129.29,28.7527]
[1718993424842,6.1854,129.34,129.29,28.7527]
[1718993425049,8.0490344,129.37,129.29,22.5652]
[1718993425233,6.1848,129.35,129.3,6.187]
[1718993425545,20.0,129.36,129.29,22.5652]
[1718993425848,6.1863,129.32,129.29,22.5652]
[1718993426446,6.1858,129.33,129.29,22.5652]
[1718993427222,6.1851,129.35,129.29,22.5652]
[1718993428138,6.1857,129.33,129.29,22.5652]
[1718993429446,6.1854,129.34,129.29,28.7527]
[1718993429651,6.1857,129.33,129.29,28.7527]
[1718993429945,6.1863,129.32,129.29,16.4931]
[1718993430248,6.1869,129.31,129.26,22.7281]
[1718993430425,6.1874,129.3,129.26,22.7281]
[1718993430627,6.1877,129.29,129.26,22.7281]
[1718993430821,8.04607389,129.35,129.27,6.1885]
[1718993430822,6.1869,129.31,129.27,6.1885]
[1718993431143,6.1869,129.31,129.26,22.7281]
[1718993431144,6.1863,129.32,129.28,6.188]
[1718993432344,6.1863,129.32,129.27,6.1883]
[1718993433044,8.04607389,129.35,129.26,45.9781]
[1718993433342,14.23117389,129.35,129.31,6.1866]
[1718993433535,26.1845,129.36,129.32,6.1861]
[1718993433735,8.04326781,129.36,129.33,6.1852]
[1718993433943,6.07976585,129.41,129.33,6.1852]
[1718993433944,6.1834,129.38,129.33,6.1852]
[1718993434148,6.07976585,129.41,129.33,6.1852]
[1718993434149,6.1838,129.37,129.33,6.1852]
[1718993434330,6.1838,129.37,129.32,6.1859]
[1718993434522,14.22503854,129.39,129.34,6.1848]
[1718993434727,6.1834,129.38,129.34,6.1848]
[1718993434926,6.1834,129.38,129.33,6.1855]
[1718993435128,6.1834,129.38,129.34,6.1852]
[1718993435656,8.04183854,129.39,129.3,22.32]
[1718993435829,6.185,129.35,129.3,28.5069]
[1718993436730,20.0,129.38,129.3,22.32]
[1718993436930,6.1841,129.37,129.32,6.186]
[1718993437344,6.1841,129.37,129.3,22.32]
[1718993437345,6.1843,129.36,129.31,6.1864]
[1718993437947,20.0,129.38,129.3,22.32]
[1718993438153,20.0,129.38,129.31,15.4665]
[1718993438458,8.04183854,129.39,129.31,15.4665]
[1718993438669,8.04183854,129.39,129.32,6.186]
[1718993438670,6.1838,129.37,129.32,6.186]
[1718993438843,6.1838,129.37,129.33,6.1856]
[1718993439168,6.1834,129.38,129.34,6.1851]
[1718993439465,6.183,129.39,129.34,6.1851]
[1718993439674,8.04460839,129.41,129.36,6.184]
[1718993440167,4.0167,129.43,129.36,6.184]
[1718993440381,11.93677923,129.43,129.36,6.184]
[1718993440550,6.1816,129.42,129.37,6.1836]
[1718993441263,6.1819,129.41,129.36,27.9172]
[1718993441462,6.1824,129.4,129.36,21.7332]
[1718993442271,6.1824,129.4,129.36,27.9174]
[1718993442580,6.1821,129.41,129.36,27.9174]
[1718993444371,6.1815,129.42,129.37,6.1837]
[1718993444590,8.04408907,129.43,129.38,6.1833]
[1718993444872,8.04408907,129.43,129.37,6.1835]
[1718993445179,8.04408907,129.43,129.36,21.7332]
[1718993445349,6.1825,129.4,129.36,27.9174]
[1718993445550,6.1825,129.4,129.36,21.7332]
[1718993445944,6.1825,129.4,129.36,27.9174]
[1718993446174,6.1819,129.41,129.37,6.1837]
[1718993446487,20.0,129.42,129.36,21.7332]
[1718993446664,6.1827,129.4,129.36,21.7332]
[1718993446982,26.1814,129.42,129.36,21.7332]
[1718993447277,6.182,129.41,129.36,27.9172]
[1718993447667,20.0,129.42,129.37,6.1837]
[1718993447668,26.1815,129.42,129.37,6.1837]
[1718993447866,6.182,129.41,129.36,27.9173]
[1718993448189,6.1824,129.4,129.36,21.7332]
[1718993448888,6.1824,129.4,129.36,27.9174]
[1718993449061,6.182,129.41,129.37,6.1837]
[1718993449788,26.1815,129.42,129.38,6.1832]
[1718993450007,8.04408907,129.43,129.41,6.1815]
[1718993450287,0.8416462,129.45,129.41,6.1815]
[1718993450787,7.0217462,129.45,129.41,6.1818]
[1718993450992,7.0217462,129.45,129.4,6.1821]
[1718993451285,0.8416462,129.45,129.4,6.4394]
[1718993451988,0.8416462,129.45,129.43,6.1805]
[1718993452168,0.8416462,129.45,129.42,6.1812]
[1718993453091,0.8416462,129.45,129.4,21.8952]
[1718993454077,0.8416462,129.45,129.42,6.1811]
[1718993454772,0.8416462,129.45,129.43,6.1807]
[1718993455308,0.8416462,129.45,129.4,21.8952]
[1718993455309,0.8416462,129.45,129.44,6.1804]
[1718993456809,0.8416462,129.45,129.44,22.6594]
[1718993458819,6.1776,129.5,129.44,16.479]
[1718993459121,26.1773,129.51,129.46,6.1792]
[1718993459283,6.1776,129.5,129.46,6.1792]
[1718993459483,14.21633228,129.52,129.47,6.1789]
[1718993459707,14.21633228,129.52,129.47,6.1788]
[1718993459884,6.1767,129.52,129.47,6.1788]
[1718993460387,6.1771,129.51,129.46,12.5767]
[1718993460588,6.1777,129.5,129.46,12.5767]
[1718993460914,6.1781,129.49,129.46,6.3973]
[1718993461125,8.03901074,129.54,129.46,6.3973]
[1718993461300,45.0,129.53,129.46,6.3973]
[1718993461492,6.1778,129.5,129.46,6.3973]
[1718993462193,6.1773,129.51,129.46,6.3973]
[1718993462797,6.1773,129.51,129.46,12.5765]
[1718993464288,6.1768,129.52,129.48,6.1785]
[1718993464799,6.1768,129.52,129.47,6.1788]
[1718993464987,6.1771,129.51,129.47,6.1788]
[1718993465782,20.0,129.53,129.44,16.479]
[1718993465989,6.1786,129.48,129.44,16.479]
[1718993466187,20.0,129.53,129.44,16.479]
[1718993466511,26.1764,129.53,129.48,6.1782]
[1718993466721,6.1764,129.53,129.48,12.7697]
[1718993466886,6.1767,129.52,129.48,12.7697]
[1718993467088,8.03901074,129.54,129.48,6.5915]
[1718993467286,6.1753,129.55,129.5,22.8266]
[1718993467515,6.1757,129.54,129.5,22.8266]
[1718993467810,6.1768,129.52,129.5,16.6493]
[1718993468185,6.1759,129.54,129.5,16.6493]
[1718993468504,8.03750884,129.56,129.5,16.6493]
[1718993468505,6.1764,129.53,129.5,16.6493]
[1718993470011,6.1767,129.52,129.5,16.6493]
[1718993470430,8.03750884,129.56,129.48,6.5915]
[1718993470599,65.0,129.55,129.47,15.1796]
[1718993471111,6.1778,129.5,129.47,15.1796]
[1718993471313,65.0,129.55,129.47,15.1796]
[1718993471818,6.1775,129.51,129.47,15.1796]
[1718993471995,6.1776,129.5,129.47,15.1796]
[1718993472194,6.1768,129.52,129.47,21.3585]
[1718993472711,6.1781,129.49,129.47,15.1796]
[1718993472914,6.1778,129.5,129.47,15.1796]
[1718993473208,6.1767,129.52,129.47,21.3584]
[1718993473414,45.82,129.55,129.47,21.3584]
[1718993473973,6.1778,129.5,129.47,15.1796]
[1718993474122,6.1783,129.49,129.47,15.1796]
[1718993474298,6.1776,129.5,129.47,15.1796]
[1718993474617,6.1779,129.5,129.47,15.1796]
[1718993475411,6.1783,129.49,129.47,15.1796]
[1718993475596,6.1783,129.49,129.44,29.1423]
[1718993475918,45.82,129.55,129.44,22.9621]
[1718993475919,6.1776,129.5,129.44,22.9621]
[1718993476091,29.7127,129.54,129.47,6.1788]
[1718993476288,6.1767,129.52,129.47,6.1788]
[1718993476511,20.0,129.53,129.48,6.1784]
[1718993476690,26.1764,129.53,129.48,6.1784]
[1718993476898,6.1764,129.53,129.48,6.1784]
[1718993477312,6.1767,129.52,129.48,6.1784]
[1718993478121,8.04251281,129.54,129.44,22.9621]
[1718993478316,6.1773,129.51,129.46,6.1793]
[1718993478906,6.1776,129.5,129.46,6.1793]
[1718993479227,6.1768,129.52,129.44,38.4122]
[1718993479518,6.1769,129.52,129.47,6.1789]
[1718993480638,6.1772,129.51,129.47,6.1789]
[1718993480930,6.1772,129.51,129.46,6.1792]
[1718993481105,6.1767,129.52,129.44,61.643]
[1718993481306,26.1763,129.53,129.48,6.1782]
[1718993481518,8.04251281,129.54,129.45,68.23]
[1718993481728,6.1757,129.54,129.47,15.1031]
[1718993481930,6.1757,129.54,129.49,6.1776]
[1718993482223,6.1758,129.54,129.5,6.1774]
[1718993483116,6.1754,129.55,129.5,6.1774]
[1718993484013,8.04012756,129.56,129.53,6.176]
[1718993484217,261.2416462,129.58,129.54,6.1756]
[1718993484406,267.4154462,129.58,129.54,6.1756]
[1718993484610,6.1742,129.57,129.53,22.6635]
[1718993484818,6.1742,129.57,129.53,16.4876]
[1718993485130,6.1748,129.56,129.53,16.4876]
[1718993485309,269.28070518,129.58,129.53,16.4876]
[1718993485518,6.1759,129.54,129.49,22.3223]
[1718993485833,269.28070518,129.58,129.49,16.1445]
[1718993485996,6.1763,129.53,129.49,16.1445]
[1718993486322,45.82,129.57,129.49,22.3222]
[1718993486529,20.0,129.57,129.54,6.1756]
[1718993486730,20.0,129.57,129.53,6.1759]
[1718993487126,26.1743,129.57,129.52,6.1765]
[1718993487419,261.2416462,129.58,129.54,6.1753]
[1718993487616,267.4154462,129.58,129.54,6.1753]
[1718993488204,261.2416462,129.58,129.55,22.7252]
[1718993488404,261.2416462,129.58,129.56,6.1745]
[1718993488621,261.2416462,129.58,129.55,28.9001]
[1718993489432,0.8416462,129.58,129.56,6.1747]
[1718993491109,0.8416462,129.58,129.55,21.7252]
[1718993491318,0.8416462,129.58,129.55,27.9003]
[1718993492112,0.8416462,129.58,129.55,21.7252]
[1718993492439,7.0155462,129.58,129.55,16.4641]
[1718993493444,7.0155462,129.58,129.53,6.1759]
[1718993493736,6.1744,129.57,129.53,6.1759]
[1718993494636,6.1726,129.61,129.56,6.1744]
[1718993495013,6.1729,129.6,129.56,6.1744]
[1718993495221,6.1722,129.62,129.57,6.1742]
[1718993495534,6.1728,129.6,129.56,6.1745]
[1718993495739,6.1725,129.61,129.56,6.1745]
[1718993496610,6.1729,129.6,129.56,6.1746]
[1718993497213,6.1725,129.61,129.56,6.1746]
[1718993497624,6.172,129.62,129.55,6.2736]
[1718993498132,6.172,129.62,129.57,6.174]
[1718993498809,8.03749374,129.64,129.57,21.5433]
[1718993499005,8.03749374,129.64,129.63,6.1714]
[1718993499212,6.1681,129.7,129.65,6.1704]
[1718993499429,0.8416462,129.71,129.64,6.1708]
[1718993499430,6.1686,129.69,129.64,6.1708]
[1718993499634,8.87664339,129.71,129.63,6.1712]
[1718993499820,6.1693,129.68,129.63,6.1713]
[1718993502524,6.1685,129.69,129.64,6.1709]
[1718993502832,6.1691,129.68,129.63,6.1712]
[1718993504243,6.1686,129.69,129.64,6.1705]
[1718993504410,6.169,129.68,129.64,6.1705]
[1718993504908,6.169,129.68,129.63,6.1712]
[1718993505634,6.169,129.68,129.64,6.1708]
[1718993505833,6.1684,129.7,129.65,6.1702]
[1718993506139,26.1684,129.7,129.65,6.1702]
[1718993506515,15.04424339,129.71,129.67,6.1694]
[1718993506714,7.0092462,129.71,129.66,6.1697]
[1718993506919,7.0092462,129.71,129.67,6.1693]
[1718993507439,0.8416462,129.71,129.67,6.1693]
[1718993508212,0.8416462,129.71,129.65,44.7311]
[1718993508213,7.0094462,129.71,129.66,6.1698]
[1718993508407,7.0094462,129.71,129.67,45.0]
[1718993508630,7.0094462,129.71,129.66,6.1698]
[1718993509045,7.0094462,129.71,129.3,61.8685]
[1718993509046,12.7735,129.7,129.57,82.5028]
[1718993509242,12.7735,129.7,129.51,33.74264723]
[1718993509243,30.09,129.68,129.51,22.87]
[1718993509550,30.09,129.68,129.53,6.1761]
[1718993509551,6.1742,129.58,129.53,6.1761]
[1718993509713,6.1742,129.58,129.51,22.87]
[1718993509714,6.175,129.56,129.51,22.87]
[1718993509916,6.175,129.56,129.51,29.0468]
[1718993510130,25.8,129.6,129.51,22.87]
[1718993510410,26.1734,129.59,129.51,22.87]
[1718993510731,25.8,129.66,129.56,6.1744]
[1718993510928,6.1726,129.61,129.52,15.4415]
[1718993511117,20.0,129.65,129.55,6.175]
[1718993511318,20.0,129.65,129.52,15.4415]
[1718993511319,20.0,129.65,129.54,38.8389]
[1718993511640,6.172,129.62,129.57,6.174]
[1718993511829,20.0,129.66,129.54,0.17]
[1718993512147,6.1725,129.61,129.54,0.17]
[1718993512316,6.1725,129.61,129.56,6.1743]
[1718993512821,6.1725,129.61,129.57,45.0]
[1718993513216,6.1725,129.61,129.56,51.1746]
[1718993513547,6.172,129.62,129.57,6.1741]
[1718993513846,6.172,129.62,129.58,45.0]
[1718993514555,6.1715,129.63,129.58,51.1736]
[1718993516242,6.1726,129.61,129.56,6.3445]
[1718993516746,6.1726,129.61,129.57,45.0]
[1718993517214,6.172,129.62,129.57,51.1742]
[1718993517426,6.172,129.62,129.58,6.1737]
[1718993518226,6.1716,129.63,129.58,6.1737]
[1718993518425,6.1719,129.62,129.57,51.1741]
[1718993519234,6.1719,129.62,129.58,6.1737]
[1718993519552,6.1706,129.65,129.6,6.1727]
[1718993519736,20.0,129.64,129.57,45.0]
[1718993519934,6.1712,129.64,129.59,6.1731]
[1718993520443,6.1714,129.63,129.58,6.1735]
[1718993521147,20.0,129.66,129.57,6.174]
[1718993521355,6.1716,129.63,129.58,6.1737]
[1718993521841,6.171,129.64,129.59,6.173]
[1718993522056,6.1704,129.65,129.61,6.1722]
[1718993522236,20.0,129.66,129.61,6.1722]
[1718993522237,26.1701,129.66,129.61,6.1722]
[1718993522421,6.1704,129.65,129.6,6.1726]
[1718993522747,20.0,129.66,129.58,6.4044]
[1718993522959,20.0,129.65,129.58,6.4044]
[1718993523153,20.0,129.67,129.58,6.4044]
[1718993523644,6.172,129.62,129.58,6.4044]
[1718993523845,20.0,129.67,129.58,6.4044]
[1718993524053,20.0,129.67,129.6,6.1727]
[1718993524054,6.171,129.64,129.6,6.1727]
[1718993524362,20.0,129.67,129.58,6.4044]
[1718993524532,20.0,129.67,129.59,6.1731]
[1718993524852,20.0,129.67,129.58,6.4044]
[1718993525359,6.1714,129.63,129.59,6.173]
[1718993525824,20.0,129.67,129.55,15.8504]
[1718993526024,6.1726,129.61,129.56,51.1743]
[1718993526254,45.0,129.66,129.56,51.1743]
[1718993526255,6.1728,129.6,129.56,51.1743]
[1718993526449,6.1733,129.59,129.55,22.0254]
[1718993526956,6.1733,129.59,129.55,15.8504]
[1718993527351,6.1738,129.58,129.55,15.8504]
[1718993527532,12.7735,129.64,129.54,12.31]
[1718993527533,20.0,129.63,129.54,12.31]
[1718993527733,45.0,129.62,129.54,12.31]
[1718993527942,6.1738,129.58,129.53,6.1759]
[1718993528350,6.1745,129.57,129.52,21.7469]
[1718993528552,6.1745,129.57,129.52,6.1765]
[1718993528735,6.1745,129.57,129.53,6.1761]
[1718993529049,20.0,129.61,129.53,6.1761]
[1718993529351,6.1739,129.58,129.53,6.1761]
[1718993529565,20.0,129.61,129.5,12.7426]
[1718993529763,6.1749,129.56,129.51,6.1769]
[1718993530058,6.1743,129.57,129.52,6.1765]
[1718993531161,6.1743,129.57,129.53,6.1761]
[1718993531543,6.1743,129.57,129.52,6.1764]
[1718993531869,6.1756,129.55,129.5,12.743]
[1718993532361,6.1745,129.57,129.52,6.1765]
[1718993534005,6.1744,129.57,129.52,6.1765]
[1718993535751,6.1749,129.56,129.51,6.1769]
[1718993535978,78.86353445,129.6,129.48,15.3203]
[1718993535979,20.0,129.55,129.48,15.3203]
[1718993536176,6.1769,129.52,129.47,6.1787]
[1718993536338,20.0,129.55,129.47,6.1787]
[1718993536339,6.1771,129.51,129.47,6.1787]
[1718993536838,6.1768,129.52,129.47,6.1788]
[1718993537780,20.0,129.55,129.46,6.0932]
[1718993537961,6.176,129.54,129.47,45.0]
[1718993538164,20.0,129.53,129.51,6.1768]
[1718993538461,26.1747,129.56,129.51,6.1768]
[1718993538651,6.1753,129.55,129.5,6.1773]
[1718993538853,20.0,129.56,129.48,38.6755]
[1718993539082,6.1745,129.57,129.52,6.1761]
[1718993539377,26.1748,129.56,129.51,6.1769]
[1718993539675,26.1748,129.56,129.49,15.4442]
[1718993539889,20.0,129.56,129.51,6.1769]
[1718993540243,6.1748,129.56,129.51,6.1769]
[1718993540446,8.04876608,129.56,129.55,6.1747]
[1718993540650,8.04876608,129.56,129.55,51.1747]
[1718993540866,6.1722,129.62,129.57,6.1742]
[1718993541058,20.0,129.61,129.57,6.1742]
[1718993541467,26.1724,129.61,129.57,6.1742]
[1718993541680,26.1724,129.61,129.56,6.1745]
[1718993542053,6.1728,129.6,129.56,6.1745]
[1718993542384,26.1727,129.61,129.57,6.1742]
[1718993542587,14.21929715,129.62,129.57,6.1742]
[1718993542748,6.1724,129.61,129.57,6.1742]
[1718993543180,14.21909715,129.62,129.57,6.1742]
[1718993543957,6.1724,129.61,129.57,6.1742]
[1718993544485,14.21919715,129.62,129.57,6.1742]
[1718993544859,6.1724,129.61,129.56,22.4907]
[1718993545053,6.1724,129.61,129.57,6.1742]
[1718993545774,14.21919715,129.62,129.57,6.1742]
[1718993545980,8.04719715,129.62,129.56,31.7527]
[1718993546164,265.2927,129.69,129.57,66.9362]
[1718993546362,6.1714,129.63,129.59,6.1729]
[1718993546564,20.0,129.66,129.57,51.1617]
[1718993546766,6.1715,129.63,129.58,6.1734]
[1718993546960,6.171,129.64,129.59,6.1732]
[1718993547670,6.1711,129.64,129.59,6.1732]
[1718993547870,6.1718,129.63,129.59,6.1732]
[1718993548074,6.1711,129.64,129.6,6.1727]
[1718993548273,6.1711,129.64,129.59,6.1729]
[1718993548786,6.1711,129.64,129.6,6.1728]
[1718993550095,6.1711,129.64,129.59,6.1731]
[1718993550380,6.1711,129.64,129.6,6.1727]
[1718993550585,20.0,129.66,129.58,38.6634]
[1718993550761,6.17,129.66,129.61,6.1722]
[1718993551490,14.21641025,129.67,129.62,6.1715]
[1718993551686,14.21671025,129.67,129.62,6.1716]
[1718993552385,14.21671025,129.67,129.63,6.1713]
[1718993552693,14.21671025,129.67,129.62,6.1716]
[1718993553100,8.04691025,129.67,129.59,68.57]
[1718993553297,8.04691025,129.67,129.61,23.23]
[1718993553597,8.04691025,129.67,129.6,15.4311]
[1718993553598,6.169,129.68,129.63,6.1712]
[1718993554771,14.22575919,129.69,129.64,6.1708]
[1718993555767,6.1691,129.68,129.63,6.1712]
[1718993557265,14.22575919,129.69,129.62,38.4377]
[1718993557468,0.8416462,129.71,129.65,6.1701]
[1718993557669,20.8416462,129.71,129.65,6.1701]
[1718993557878,8.05642443,129.7,129.65,6.1701]
[1718993558900,6.1685,129.69,129.65,6.1701]
[1718993559806,8.05642443,129.7,129.66,45.0]
[1718993559986,0.8416462,129.71,129.66,45.0]
[1718993560380,0.8416462,129.71,129.65,68.23]
[1718993560893,0.8416462,129.71,129.68,6.1688]
[1718993561974,0.8416462,129.71,129.64,0.17]
[1718993562176,7.0093462,129.71,129.66,6.1696]
[1718993562396,7.0093462,129.71,129.64,0.17]
[1718993562701,6.1681,129.7,129.66,6.1697]
[1718993562917,0.8416462,129.71,129.68,6.1687]
[1718993563074,0.8416462,129.71,129.69,6.1685]
[1718993563581,0.8416462,129.71,129.68,6.1688]
[1718993564023,0.8416462,129.71,129.65,15.425]
[1718993564024,0.8416462,129.71,129.67,6.1692]
[1718993564695,0.8416462,129.71,129.69,6.1685]
[1718993564986,0.8416462,129.71,129.7,6.168]
[1718993568117,8.02919964,129.76,129.7,23.57]
[1718993568295,6.1646,129.78,129.73,6.1663]
[1718993568617,6.1639,129.79,129.74,6.1659]
[1718993568983,6.1639,129.79,129.74,6.1657]
[1718993570119,6.1639,129.79,129.75,6.1656]
[1718993570796,6.1635,129.8,129.75,6.1654]
[1718993571110,6.163,129.81,129.76,6.1649]
[1718993571484,8.01622196,129.82,129.76,39.4865]
[1718993571686,7.0038462,129.83,129.78,6.1639]
[1718993572117,0.8416462,129.83,129.79,6.1637]
[1718993572324,0.8416462,129.83,129.8,6.1631]
[1718993572494,0.8416462,129.83,129.77,0.34]
[1718993572819,7.0035462,129.83,129.79,6.1636]
[1718993573189,7.0035462,129.83,129.77,6.5042]
[1718993573400,7.0035462,129.83,129.78,6.1642]
[1718993573712,7.0035462,129.83,129.77,0.34]
[1718993573713,0.8416462,129.83,129.79,6.1637]
[1718993573917,0.8416462,129.83,129.77,0.34]
[1718993574215,7.0036462,129.83,129.78,6.1642]
[1718993575322,0.8416462,129.83,129.79,6.1636]
[1718993577109,7.0036462,129.83,129.79,6.1636]
[1718993577516,0.8416462,129.83,129.79,6.1636]
[1718993577809,0.8416462,129.83,129.8,6.1632]
[1718993578121,0.8416462,129.83,129.8,6.1631]
[1718993578326,0.8416462,129.83,129.79,0.34]
[1718993578494,0.8416462,129.83,129.81,6.1627]
[1718993578803,0.8416462,129.83,129.79,0.34]
[1718993578804,0.8416462,129.83,129.8,6.1631]
[1718993579120,0.8416462,129.83,129.81,6.1626]
[1718993580321,0.8416462,129.83,129.8,6.1632]
[1718993580512,0.8416462,129.83,129.79,0.34]
[1718993580716,0.8416462,129.83,129.8,6.1633]
[1718993581288,0.8416462,129.83,129.79,0.34]
[1718993581289,0.8416462,129.83,129.82,6.1623]
[1718993581494,0.8416462,129.83,129.82,6.5023]
[1718993582494,0.8416462,129.83,129.81,6.1008]
[1718993582825,0.8416462,129.83,129.82,6.1623]
[1718993583117,0.8416462,129.83,129.79,6.1634]
[1718993583302,0.8416462,129.83,129.77,22.0422]
[1718993583303,0.8416462,129.83,129.8,6.1632]
[1718993583502,0.8416462,129.83,129.81,6.1627]
[1718993584219,0.8416462,129.83,129.8,6.1631]
[1718993584389,0.8416462,129.83,129.78,23.23]
[1718993584596,0.8416462,129.83,129.79,0.17]
[1718993584808,0.8416462,129.83,129.79,0.34]
[1718993585419,0.8416462,129.83,129.77,22.0422]
[1718993585722,0.8416462,129.83,129.79,6.1636]
[1718993586712,7.0037462,129.83,129.77,6.6305]
[1718993586905,0.8416462,129.83,129.79,6.1637]
[1718993587107,0.8416462,129.83,129.8,6.1632]
[1718993588823,0.8416462,129.83,129.79,6.1635]
[1718993589231,0.8416462,129.83,129.78,6.1642]
[1718993590634,0.8416462,129.83,129.76,54.8986]
[1718993590926,0.8416462,129.83,129.8,6.1631]
[1718993591321,0.8416462,129.83,129.79,6.1636]
[1718993591500,6.1635,129.8,129.73,29.4671]
[1718993591704,8.7221,129.82,129.75,6.1655]
[1718993591920,8.7221,129.82,129.74,6.1659]
[1718993591921,6.1643,129.78,129.74,6.1659]
[1718993592105,6.1648,129.77,129.73,6.1664]
[1718993592319,6.1648,129.77,129.72,6.1669]
[1718993592713,6.1655,129.76,129.72,6.1669]
[1718993593041,6.1645,129.78,129.73,6.1664]
[1718993593411,6.1639,129.79,129.71,39.5793]
[1718993593732,8.7221,129.82,129.73,38.6466]
[1718993593911,8.7221,129.82,129.76,6.1649]
[1718993594320,6.1636,129.8,129.75,6.1656]
[1718993595018,6.1636,129.8,129.76,6.1651]
[1718993595605,6.1628,129.81,129.76,6.1651]
[1718993596244,8.7221,129.82,129.74,23.23]
[1718993596419,0.8416462,129.83,129.75,23.57]
[1718993596740,0.8416462,129.83,129.78,6.1639]
[1718993596741,7.0036462,129.83,129.78,6.1639]
[1718993596909,7.0036462,129.83,129.77,6.1645]
[1718993596910,6.1627,129.82,129.77,6.1645]
[1718993597239,7.0036462,129.83,129.78,6.1641]
[1718993597415,6.1624,129.82,129.78,6.1641]
[1718993597616,6.1628,129.81,129.76,6.165]
[1718993597920,6.1628,129.81,129.77,6.1647]
[1718993598640,6.1634,129.8,129.75,6.1656]
[1718993599015,6.1638,129.79,129.75,6.1656]
[1718993599218,6.1643,129.78,129.74,6.166]
[1718993599421,6.1639,129.79,129.74,6.166]
[1718993599611,26.5816462,129.83,129.75,6.1655]
[1718993599811,6.1634,129.8,129.75,6.1655]
[1718993600038,6.1634,129.8,129.72,15.4167]
[1718993600224,6.1634,129.8,129.75,6.1654]
[1718993600423,6.1638,129.79,129.74,6.1659]
[1718993600624,20.0,129.82,129.76,6.1651]
[1718993600807,20.0,129.82,129.71,16.3493]
[1718993601012,20.8416462,129.83,129.77,6.1647]
[1718993601233,6.1626,129.82,129.77,6.1647]
[1718993601442,6.1629,129.81,129.77,6.1647]
[1718993601647,6.1629,129.81,129.76,6.165]
[1718993602607,20.8416462,129.83,129.73,6.1662]
[1718993602608,6.1645,129.78,129.73,6.1662]
[1718993602916,6.1639,129.79,129.74,6.1659]
[1718993603241,6.1648,129.77,129.73,6.1665]
[1718993603907,6.1644,129.78,129.73,6.1665]
[1718993604113,6.1644,129.78,129.74,6.1661]
[1718993605022,6.1644,129.78,129.73,6.1664]
[1718993605221,6.1648,129.77,129.72,6.1669]
[1718993605622,4.8927,129.79,129.7,38.6492]
[1718993605823,11.0567,129.79,129.74,6.1659]
[1718993606023,11.0567,129.79,129.75,6.1656]
[1718993606229,11.0567,129.79,129.74,6.166]
[1718993606415,4.8927,129.79,129.74,6.166]
[1718993606621,6.165,129.77,129.72,6.1669]
[1718993606839,6.165,129.77,129.69,45.0115]
[1718993607039,6.165,129.77,129.72,6.1669]
[1718993607220,6.1652,129.76,129.72,6.1669]
[1718993608946,6.1654,129.76,129.71,6.1675]
[1718993609954,6.1664,129.74,129.69,6.1685]
[1718993610248,6.1669,129.73,129.68,6.1686]
[1718993610454,8.7221,129.77,129.66,6.3395]